[Event "Tsaghkadzor Open 2024"]
[Site "Tsaghkadzor"]
[Date "2024.10.02"]
[Round "4.1"]
[White "Andriasian, Zaven"]
[Black "Karthik Venkataraman"]
[Result "1/2-1/2"]
[ECO "B30"]
[WhiteElo "2558"]
[BlackElo "2581"]
[Annotator "TA"]
[PlyCount "35"]
[EventDate "2024.09.13"]
[EventType "swiss"]
[EventCountry "ARM"]
[SourceTitle "playchess.com"]
[Source "ChessBase"]
[SourceQuality "1"]
[TimeControl "40/5400+30:1800+30"]

{[%evp 18,35,0,0,0,0,0,0,0,0,8,0,0,0,0,0,12,-13,0,0]} 1. e4 {[%emt 0:00:04]} c5 {[%emt 0:00:08]} 2. Nf3 {[%emt 0:00:08]} Nc6 {[%emt 0:00:05]} 3. Bb5 {[%emt 0:00:15]} e6 {[%emt 0:00:07]} 4. O-O {[%emt 0:00:40]} Nge7 {[%emt 0:00:06]} 5. Re1 {[%emt 0:01:31]} a6 {[%emt 0:00:19]} 6. Bxc6 {[%emt 0:04:16]} Nxc6 {[%emt 0:00:52]} 7. d4 {[%emt 0:00:08]} cxd4 {[%emt 0:00:24]} 8. Nxd4 {[%emt 0:00:07]} Qc7 {[%emt 0:32:21]} 9. Nc3 {[%emt 0:08:50]} Bd6 {[%emt 0:02:53]} 10. Nxc6 {[%emt 0:05:44] Die Stellung ist ausgeglichen.} dxc6 {[%emt 0:00:47]} 11. Qh5 {[%emt 0:00:29] und nun wäre e5 stark für Weiss.} e5 {[%emt 0:00:51]} 12. Be3 {[%emt 0:01:27]} b5 {[%emt 0:07:31]} 13. a4 {[%emt 0:08:03] Droht axb5 und aus.} Rb8 {[%emt 0:00:16]} 14. axb5 {[%emt 0:03:11]} axb5 {[%emt 0:00:06]} 15. Ne2 {[%emt 0:03:40]} O-O {[%emt 0:00:59]} 16. Ng3 {[%emt 0:00:24]} g6 {[%emt 0:01:24] Wehrt Nf5 ab} 17. Qe2 {[%emt 0:02:48]} Qe7 {[%emt 0:02:28]} 18. Red1 {[%emt 0:04:10] Hier war wenig los.   Gewichteter Fehlerwert: Weiß=0.04 (makellos) /Schwarz=0.03 (makellos) .  OK:         	Weiß=6     	Schwarz=4} 1/2-1/2

[Event "Tsaghkadzor Open 2024"]
[Site "Tsaghkadzor"]
[Date "2024.10.02"]
[Round "4.2"]
[White "Lobanov, Sergei"]
[Black "Audi Ameya"]
[Result "1/2-1/2"]
[ECO "B95"]
[WhiteElo "2506"]
[BlackElo "2413"]
[Annotator "TA"]
[PlyCount "47"]
[EventDate "2024.09.13"]
[EventType "swiss"]
[EventCountry "ARM"]
[SourceTitle "playchess.com"]
[Source "ChessBase"]
[SourceQuality "1"]
[TimeControl "40/5400+30:1800+30"]

{[%evp 15,47,0,36,35,27,27,31,20,35,22,79,70,70,60,45,61,58,27,31,43,37,20,29,20,20,25,12,11,16,14,14,14,20,22]} 1. e4 {[%emt 1:31:00]} c5 {[%emt 1:31:00]} 2. Nf3 {[%emt 0:00:30]} d6 {[%emt 0:00:30]} 3. d4 {[%emt 0:00:30]} cxd4 {[%emt 0:00:30]} 4. Nxd4 {[%emt 0:00:30]} Nf6 {[%emt 0:00:30]} 5. Nc3 {[%emt 0:00:30]} a6 {[%emt 0:00:30]} 6. Bg5 {[%emt 0:00:30]} e6 {[%emt 0:00:30]} 7. Qf3 {[%emt 0:00:30]} Be7 {[%emt 0:00:30]} 8. O-O-O {[%emt 0:00:30]} Nbd7 {[%emt 0:00:30]} 9. g4 {[%emt 0:00:30]} h6 {[%emt 0:00:30]} 10. Bd2 {[%emt 0:00:30]} Qb6 {[%emt 0:00:30]} 11. Be1 {[%emt 0:00:30] White is slightly better.} Ne5 {[%emt 0:00:30]} 12. Qg3 {[%emt 0:00:30]} g5 {[%emt 0:00:30]} (12... Nc6 $11 13. Nxc6 Qxc6) 13. h4 $16 {[%emt 0:00:30] [#] Hoping for hxg5.} Rg8 {[%emt 0:00:30]} 14. hxg5 {[%emt 0:00:30]} hxg5 {[%emt 0:00:30]} 15. f3 {[%emt 0:00:30]} Bd7 {[%emt 0:00:30]} 16. Rh6 {[%emt 0:00:30]} O-O-O {[%emt 0:00:30]} 17. Bf2 {[%emt 0:00:30][%cal Od4f5] [#] Strongly threatening Nf5!} Qc7 {[%emt 0:00:30]} 18. Qg1 {[%emt 0:00:30]} Bc6 {[%emt 0:00:30]} 19. Be2 {[%emt 0:00:30]} Rh8 {[%emt 0:00:30]} 20. Rxh8 {[%emt 0:00:30]} Rxh8 {[%emt 0:00:30]} 21. Be3 {[%emt 0:00:30] The position is equal.} Nfd7 {[%emt 0:00:30]} 22. Qe1 {[%emt 0:00:30]} Nb6 {[%emt 0:00:30]} 23. Kb1 {[%emt 0:00:30]} Bd7 {[%emt 0:00:30]} 24. Nb3 {[%emt 0:00:30] Weighted Error Value: White=0.05 (flawless) /Black=0.09 (flawless) .  Mistake:       	---       	Black=1      Inaccurate:     	White=1     	---        OK:         	White=5     	Black=9      Best:        	White=1     	---} 1/2-1/2

[Event "Tsaghkadzor Open 2024"]
[Site "Tsaghkadzor"]
[Date "2024.10.02"]
[Round "4.3"]
[White "Goganov, Aleksey"]
[Black "Zverev, Lev"]
[Result "1-0"]
[ECO "C70"]
[WhiteElo "2463"]
[BlackElo "2448"]
[Annotator "TA"]
[PlyCount "73"]
[EventDate "2024.09.13"]
[EventType "swiss"]
[EventCountry "ARM"]
[SourceTitle "playchess.com"]
[Source "ChessBase"]
[SourceQuality "1"]
[TimeControl "40/5400+30:1800+30"]

{[%evp 9,73,26,47,25,38,27,29,27,42,39,25,39,29,20,27,37,39,25,68,49,58,55,172,187,188,191,189,191,409,175,167,158,168,157,193,190,184,172,479,460,442,456,456,454,454,419,420,420,547,314,332,322,349,354,362,352,354,321,337,328,333,319,613,616,616,572]} 1. e4 {[%emt 0:00:03]} e5 {[%emt 0:00:04]} 2. Nf3 {[%emt 0:00:04]} Nc6 {[%emt 0:00:05]} 3. Bb5 {[%emt 0:00:04]} a6 {[%emt 0:00:05]} 4. Ba4 {[%emt 0:00:06]} Bc5 {[%emt 0:00:06]} 5. c3 {[%emt 0:01:38][%cal Bc2c3,Bc3d4][%mdl 32]} Nge7 {[%emt 0:00:16]} 6. d4 {[%emt 0:02:31]} exd4 {[%emt 0:00:11]} 7. cxd4 {[%emt 0:00:04]} Bb4+ {[%emt 0:00:07]} 8. Bd2 {[%emt 0:00:37] White has an edge.} Bxd2+ {[%emt 0:00:32]} 9. Qxd2 {[%emt 0:00:11]} d5 {[%emt 0:00:39]} 10. exd5 {[%emt 0:00:10]} Qxd5 {[%emt 0:00:45]} 11. Nc3 {[%emt 0:03:47][%cal Bb1c3,Bc3e4,Be4c5][%mdl 32]} Qe6+ {[%emt 0:00:57]} 12. Qe3 {[%emt 0:01:29]} b5 {[%emt 0:17:32]} 13. Bb3 $36 {[%emt 0:01:10][%mdl 2048] White has good play.} Qd6 {[%emt 0:02:23]} 14. Ne4 {[%emt 0:06:20] White is more active.} Qb4+ {[%emt 0:02:38]} 15. Kf1 $1 {[%emt 0:00:45] And now a3 would win.} Na5 {[%emt 0:01:17] White leaves nothing to chance now.} (15... Be6 $1 $14) 16. Nc5 $18 {[%emt 0:04:17]} Nxb3 {[%emt 0:28:46]} 17. axb3 {[%emt 0:00:37] Ne5 would now be deadly.} Be6 {[%emt 0:00:54]} 18. Nxa6 {[%emt 0:11:28] A dynamic duo of knights.} (18. Rxa6 Rxa6 19. Nxa6 Qd6 $15) (18. Nxe6 fxe6 19. Re1 (19. Qxe6 Qd6 $16) 19... Qd6 $16) 18... Nf5 $2 {[%emt 0:00:59]} (18... Rxa6 {keeps fighting.} 19. Rxa6 O-O) 19. Qd3 {[%emt 0:17:55]} ({And not} 19. Nxc7+ Kd7 20. Ne5+ (20. Rxa8 $2 Nxe3+ 21. fxe3 Rxa8 $19) 20... Kd6 $11 (20... Kxc7 21. Qc1+ $16)) (19. Nxb4 $142 Rxa1+ 20. Ke2 Rxh1 21. Qc3) 19... Rxa6 {[%emt 0:00:37]} 20. Rxa6 {[%emt 0:00:36] Threatens to win with Ra8+.} O-O {[%emt 0:00:07]} 21. g4 {[%emt 0:14:45]} Bc8 {[%emt 0:03:11]} 22. Ra7 {[%emt 0:06:20]} Ne7 {[%emt 0:02:34]} 23. Rg1 {[%emt 0:06:20]} ({Don't take} 23. Rxc7 Qd6 24. Rc5 b4 (24... Bxg4 25. Rg1 $16)) 23... Nc6 $2 {[%emt 0:09:58]} (23... Nd5 24. Rg3 Qd6 25. Qxb5 Nf4) 24. Rxc7 {[%emt 0:04:49]} Qd6 {[%emt 0:00:11] [#]} 25. Ng5 $1 {[%emt 0:00:16][%csl Gg5][%cal Rd3h7]} g6 {[%emt 0:04:31] [#]} 26. Qh3 $1 {[%emt 0:01:06][%csl Gg5][%cal Rh3h7]} h5 {[%emt 0:00:09] [#]} 27. Rxc8 {[%emt 0:03:36]} Rxc8 {[%emt 0:00:04]} 28. gxh5 {[%emt 0:00:09][%cal Bg4h5,Bh5g6][%mdl 32]} Ra8 {[%emt 0:03:26]} 29. hxg6 {[%emt 0:01:09]} Ra1+ {[%emt 0:01:44]} 30. Kg2 {[%emt 0:00:17] White threatens Qh7+ and mate.} Qd5+ {[%emt 0:00:25]} 31. Nf3 {[%emt 0:00:10] White wants to mate with Qh7+.} Rxg1+ {[%emt 0:00:06]} 32. Kxg1 {[%emt 0:00:02] Intending Qh7+ and mate.} fxg6 {[%emt 0:00:09] KQN-KQN} 33. Qc8+ {[%emt 0:02:16]} Kg7 {[%emt 0:00:09]} 34. Qc7+ {[%emt 0:01:22]} Kg8 {[%emt 0:01:08]} 35. Qf4 {[%emt 0:00:16] Qf6 is the strong threat.} b4 $2 {[%emt 0:00:37]} (35... Ne7 36. Qb8+ Kg7) 36. Qf6 {[%emt 0:01:06]} Qe4 {[%emt 0:03:30]} 37. h3 {[%emt 0:00:19] Inhibits Qg4+.   Weighted Error Value: White=0.22 (precise) /Black=0.46.  Mistake:       	White=1     	Black=4      Inaccurate:     	White=1     	Black=2      OK:         	White=10    	Black=12     Best:        	White=5     	Black=6      Strong:       	White=2     	---} 1-0

[Event "Tsaghkadzor Open 2024"]
[Site "Tsaghkadzor"]
[Date "2024.10.02"]
[Round "4.4"]
[White "Yeritsyan, Hayk"]
[Black "Torosyan, Volodya"]
[Result "1-0"]
[ECO "B51"]
[WhiteElo "2229"]
[BlackElo "2187"]
[Annotator "RC"]
[PlyCount "111"]
[EventDate "2024.09.13"]
[EventType "swiss"]
[EventCountry "ARM"]
[SourceTitle "playchess.com"]
[Source "ChessBase"]
[SourceQuality "1"]
[TimeControl "40/5400+30:1800+30"]

1. e4 {[%emt 0:00:20]} c5 {[%emt 0:00:17]} 2. Nf3 {[%emt 0:00:06]} d6 {[%emt 0:00:04]} 3. Bb5+ {[%emt 0:00:25]} Nd7 {[%emt 0:00:08]} 4. O-O {[%emt 0:00:07]} a6 {[%emt 0:00:36]} 5. Be2 {[%emt 0:00:19]} Ngf6 {[%emt 0:00:42]} 6. d3 {[%emt 0:00:17]} g6 {[%emt 0:00:41]} 7. c4 {[%emt 0:00:09]} b5 {[%emt 0:02:37]} 8. cxb5 {[%emt 0:03:12]} axb5 {[%emt 0:00:22]} 9. d4 {[%emt 0:00:08]} cxd4 {[%emt 0:11:09]} 10. Nxd4 {[%emt 0:01:56]} b4 {[%emt 0:01:19]} 11. Be3 {[%emt 0:10:59]} Bb7 {[%emt 0:07:58]} 12. Qb3 {[%emt 0:02:29]} Qa5 {[%emt 0:10:45]} 13. Bc4 {[%emt 0:07:14]} e6 {[%emt 0:10:40]} 14. Nd2 {[%emt 0:05:50]} Be7 {[%emt 0:14:16]} 15. Rfc1 {[%emt 0:26:10]} Nc5 {[%emt 0:01:31]} 16. Bb5+ {[%emt 0:01:40]} Kf8 {[%emt 0:00:20]} 17. Bh6+ {[%emt 0:00:56]} Kg8 {[%emt 0:00:08]} 18. Qh3 {[%emt 0:00:42]} Nfxe4 {[%emt 0:04:06]} 19. Nc6 {[%emt 0:04:59]} Qc7 {[%emt 0:03:18]} 20. Nxe4 {[%emt 0:01:40]} Nxe4 {[%emt 0:06:07]} 21. Nxe7+ {[%emt 0:03:45]} Qxe7 {[%emt 0:00:08]} 22. Bc6 {[%emt 0:01:28]} f5 {[%emt 0:03:06]} 23. Qe3 {[%emt 0:00:54]} Kf7 {[%emt 0:01:17]} 24. Qd4 {[%emt 0:01:00]} Rhg8 {[%emt 0:01:51]} 25. Bxb7 {[%emt 0:05:27]} Qxb7 {[%emt 0:00:07]} 26. f3 {[%emt 0:02:36]} Nf6 {[%emt 0:00:26]} 27. Qxd6 {[%emt 0:00:06]} Nd5 {[%emt 0:00:16]} 28. Rc6 {[%emt 0:00:42]} Qe7 {[%emt 0:03:59]} 29. Re1 {[%emt 0:00:40]} Qxd6 {[%emt 0:03:58]} 30. Rxd6 {[%emt 0:00:04]} Rge8 {[%emt 0:00:34]} 31. Bg5 {[%emt 0:00:23]} Ra7 {[%emt 0:02:05]} 32. b3 {[%emt 0:04:06]} Nc3 {[%emt 0:06:39]} 33. Be3 {[%emt 0:01:52]} Rb7 {[%emt 0:02:33]} 34. Ra6 {[%emt 0:00:44]} e5 {[%emt 0:02:26]} 35. Bc5 {[%emt 0:00:49]} Re6 {[%emt 0:00:51]} 36. Ra8 {[%emt 0:00:34]} e4 {[%emt 0:00:30]} 37. Rh8 {[%emt 0:01:13]} Rb5 {[%emt 0:00:35]} 38. Rxh7+ {[%emt 0:00:35]} Ke8 {[%emt 0:00:01]} 39. Bd4 {[%emt 0:00:51]} Nd5 {[%emt 0:01:00]} 40. Rc1 {[%emt 0:00:00]} Kd8 {[%emt 0:00:00]} 41. fxe4 {[%emt 0:19:13]} fxe4 {[%emt 0:15:58]} 42. Rf1 {[%emt 0:04:02]} e3 {[%emt 0:01:58]} 43. Rff7 {[%emt 0:03:03]} Ra5 {[%emt 0:03:36]} 44. Rb7 {[%emt 0:00:32]} Ra8 {[%emt 0:03:10]} 45. Rbd7+ {[%emt 0:00:48]} Ke8 {[%emt 0:03:30]} 46. Rxd5 {[%emt 0:00:05]} e2 {[%emt 0:00:04]} 47. Bf2 {[%emt 0:01:02]} Rxa2 {[%emt 0:00:26]} 48. Rh8+ {[%emt 0:00:15]} Ke7 {[%emt 0:00:34]} 49. Bh4+ {[%emt 0:03:07]} g5 {[%emt 0:00:18]} 50. Bxg5+ {[%emt 0:00:09]} Kf7 {[%emt 0:00:14]} 51. Rd7+ {[%emt 0:00:07]} Kg6 {[%emt 0:00:21]} 52. Rh6+ {[%emt 0:00:02]} Kf5 {[%emt 0:00:28]} 53. Rxe6 {[%emt 0:00:57]} Kxe6 {[%emt 0:00:43]} 54. Re7+ {[%emt 0:00:02]} Kf5 {[%emt 0:00:37]} 55. Bh4 {[%emt 0:00:38]} Kg4 {[%emt 0:00:11]} 56. Be1 {[%emt 0:00:11]} 1-0

[Event "Tsaghkadzor Open 2024"]
[Site "Tsaghkadzor"]
[Date "2024.10.02"]
[Round "4.5"]
[White "Lysyj, Igor"]
[Black "Chaqryan, Erik"]
[Result "1-0"]
[ECO "E94"]
[WhiteElo "2589"]
[BlackElo "2335"]
[Annotator "TA"]
[PlyCount "91"]
[EventDate "2024.09.13"]
[EventType "swiss"]
[EventCountry "ARM"]
[SourceTitle "playchess.com"]
[Source "ChessBase"]
[SourceQuality "1"]
[TimeControl "40/5400+30:1800+30"]

{[%evp 15,91,38,48,34,70,54,53,50,119,111,118,116,106,71,59,61,52,57,66,72,73,87,93,56,81,66,54,57,51,58,68,78,75,72,96,65,93,93,93,88,74,77,70,75,89,89,97,100,127,120,150,153,152,158,249,265,265,250,355,346,450,417,452,451,528,506,527,494,531,541,555,538,1259,1231,1307,1201,1264,1264]} 1. d4 {[%emt 1:31:00]} Nf6 {[%emt 1:31:00]} 2. c4 {[%emt 0:00:30]} g6 {[%emt 0:00:30]} 3. Nc3 {[%emt 0:00:30]} Bg7 {[%emt 0:00:30]} 4. e4 {[%emt 0:00:30]} d6 {[%emt 0:00:30]} 5. Nf3 {[%emt 0:00:30]} O-O {[%emt 0:00:30]} 6. Be2 {[%emt 0:00:30]} e5 {[%emt 0:00:30]} 7. Be3 {[%emt 0:00:30]} Na6 {[%emt 0:00:30]} 8. O-O {[%emt 0:00:30]} Qe7 {[%emt 0:00:30][%cal Of6e4]} 9. Qc2 {[%emt 0:00:30]} Bg4 {[%emt 0:00:30]} 10. dxe5 {[%emt 0:00:30]} dxe5 {[%emt 0:00:30]} 11. Nd5 {[%emt 0:00:30] White is slightly better.} Nxd5 {[%emt 0:00:30]} (11... Qe8 $14) 12. cxd5 $16 {[%emt 0:00:30]} Bxf3 {[%emt 0:00:30]} 13. Bxf3 {[%emt 0:00:30]} c6 {[%emt 0:00:30]} 14. dxc6 {[%emt 0:00:30] Threatens to win with Rac1.} Rac8 {[%emt 0:00:30]} 15. Qa4 {[%emt 0:00:30]} Rxc6 {[%emt 0:00:30]} 16. Rad1 {[%emt 0:00:30]} Rfc8 {[%emt 0:00:30]} 17. Bg4 {[%emt 0:00:30]} (17. Bxa7 $2 b5 18. Qxb5 Qxa7 $19) 17... R8c7 {[%emt 0:00:30]} 18. Be2 {[%emt 0:00:30][%cal Oe2b5]} h5 {[%emt 0:00:30]} 19. Bxa7 {[%emt 0:00:30]} Rc2 {[%emt 0:00:30]} 20. Bxa6 {[%emt 0:00:30]} bxa6 {[%emt 0:00:30]} 21. Be3 {[%emt 0:00:30]} Qe6 {[%emt 0:00:30]} 22. Rc1 {[%emt 0:00:30]} R2c4 {[%emt 0:00:30]} 23. Rxc4 {[%emt 0:00:30]} Rxc4 {[%emt 0:00:30]} 24. Qb3 {[%emt 0:00:30]} Qc6 {[%emt 0:00:30]} 25. f3 {[%emt 0:00:30]} Bf6 {[%emt 0:00:30]} 26. Rd1 {[%emt 0:00:30]} a5 {[%emt 0:00:30]} 27. Qb8+ {[%emt 0:00:30]} Kg7 {[%emt 0:00:30]} 28. Qd6 $1 {[%emt 0:00:30] White is much more active.} ({Much weaker is} 28. Rd6 Rc1+ 29. Kf2 (29. Bxc1 Qxc1+ 30. Kf2 Bg5 $11) 29... Rc2+ 30. Kg3 Qc4 $11) 28... Qxd6 {[%emt 0:00:30]} 29. Rxd6 {[%emt 0:00:30][%mdl 4096] Endgame. KRB-KRB} Rc2 {[%emt 0:00:30]} 30. Rd2 {[%emt 0:00:30]} Rc1+ {[%emt 0:00:30]} 31. Kf2 {[%emt 0:00:30]} a4 {[%emt 0:00:30]} 32. Ke2 {[%emt 0:00:30]} Ra1 {[%emt 0:00:30] [#]} 33. a3 $1 {[%emt 0:00:30]} Rc1 {[%emt 0:00:30] Wards off Rc2} 34. Kd3 {[%emt 0:00:30]} Bh4 {[%emt 0:00:30] [#]} (34... Rc8 $16 35. Rc2 Rd8+ 36. Ke2 Rb8) 35. Rc2 $1 $18 {[%emt 0:00:30]} Rh1 {[%emt 0:00:30]} 36. h3 {[%emt 0:00:30]} Bg3 {[%emt 0:00:30]} (36... f5 $142 37. Bd2 fxe4+ 38. fxe4 (38. Kxe4 Bg3 $18) 38... Kf6) 37. Kc4 {[%emt 0:00:30]} Re1 {[%emt 0:00:30]} 38. Bd2 {[%emt 0:00:30]} Rf1 {[%emt 0:00:30]} 39. Bc3 {[%emt 0:00:30] White is clearly winning.} f5 {[%emt 0:00:30]} 40. Kb5 {[%emt 0:00:30]} Kf6 {[%emt 0:00:30]} 41. Kxa4 {[%emt 0:30:30]} Bf2 {[%emt 0:30:30]} 42. Kb5 {[%emt 0:00:30]} Bd4 {[%emt 0:00:30]} 43. a4 {[%emt 0:00:30][%cal Ba3a4,Ba4a5][%mdl 32]} Bxc3 {[%emt 0:00:30]} 44. Rxc3 {[%emt 0:00:30]} Rf2 {[%emt 0:00:30]} 45. Rb3 {[%emt 0:00:30]} Rxg2 {[%emt 0:00:30]} 46. a5 {[%emt 0:00:00] Weighted Error Value: White=0.06 (flawless) /Black=0.21 (precise) .  Mistake:       	---       	Black=3      Inaccurate:     	White=3     	Black=4      OK:         	White=20    	Black=10     Best:        	White=1     	Black=4      Strong:       	White=2     	---} 1-0

[Event "Tsaghkadzor Open 2024"]
[Site "Tsaghkadzor"]
[Date "2024.10.02"]
[Round "4.6"]
[White "Gabuzyan, Hovhannes"]
[Black "Pashikyan, Rudolf"]
[Result "1-0"]
[ECO "E06"]
[WhiteElo "2579"]
[BlackElo "2279"]
[Annotator "TA"]
[PlyCount "111"]
[EventDate "2024.09.13"]
[EventType "swiss"]
[EventCountry "ARM"]
[SourceTitle "playchess.com"]
[Source "ChessBase"]
[SourceQuality "1"]
[TimeControl "40/5400+30:1800+30"]

{[%evp 13,111,0,0,2,13,1,16,25,23,34,27,31,52,20,21,18,36,4,23,15,29,49,62,35,51,52,53,0,0,0,0,0,91,92,93,87,89,88,68,100,138,131,132,138,133,130,137,137,132,140,140,140,136,142,171,138,149,110,179,171,202,121,137,120,131,102,102,102,117,91,145,145,145,145,145,145,145,145,270,270,270,270,434,434,434,434,434,434,434,434,404,356,475,475,475,366,482,424,344,344]} 1. Nf3 {[%emt 0:00:47]} d5 {[%emt 0:00:07]} 2. g3 {[%emt 0:00:05]} Nf6 {[%emt 0:00:38]} 3. Bg2 {[%emt 0:00:04]} e6 {[%emt 0:00:06]} 4. O-O {[%emt 0:00:05]} Be7 {[%emt 0:00:04]} 5. c4 {[%emt 0:00:04]} O-O {[%emt 0:00:06]} 6. Qc2 {[%emt 0:00:02]} c5 {[%emt 0:04:43]} 7. d4 {[%emt 0:00:05]} Nc6 {[%emt 0:03:21]} 8. cxd5 {[%emt 0:04:11]} Nb4 {[%emt 0:04:23]} 9. Qb3 {[%emt 0:00:52]} Qxd5 {[%emt 0:01:17]} 10. dxc5 {[%emt 0:00:10] The position is equal.} Qxb3 {[%emt 0:01:58]} 11. axb3 {[%emt 0:00:07]} Bxc5 {[%emt 0:00:03]} 12. Nc3 {[%emt 0:00:06]} a6 {[%emt 0:11:18]} 13. Bd2 {[%emt 0:08:01]} Nc6 {[%emt 0:03:05]} 14. Rfc1 {[%emt 0:24:56]} Ba7 {[%emt 0:06:42]} 15. Na4 {[%emt 0:06:41]} e5 {[%emt 0:10:10]} 16. e3 {[%emt 0:02:33][%cal Oc1c6]} (16. Rxc6 {is more complex.} bxc6 17. Nxe5 Ng4 18. Nxc6 Bxf2+ 19. Kf1) 16... Ne4 {[%emt 0:09:12]} 17. Be1 {[%emt 0:02:15][%cal Of3e5]} f5 {[%emt 0:00:14]} 18. b4 {[%emt 0:05:11][%cal Ob4b5]} f4 {[%emt 0:09:03]} 19. exf4 {[%emt 0:03:39]} exf4 {[%emt 0:00:06] [#]} 20. b5 {[%emt 0:00:26]} fxg3 {[%emt 0:05:03]} 21. hxg3 {[%emt 0:00:17]} axb5 {[%emt 0:10:40]} 22. Nb6 {[%emt 0:00:05][%cal Ba4b6,Bb6a8,Ba8c7][%mdl 32]} Nxg3 {[%emt 0:00:11]} 23. Nxa8 $16 {[%emt 0:15:27]} Ne2+ {[%emt 0:00:08]} 24. Kh1 {[%emt 0:03:39]} Nxc1 {[%emt 0:00:23]} 25. Rxc1 {[%emt 0:00:04]} Bg4 {[%emt 0:07:34][%csl LRa8,LRf3]} 26. Nh2 {[%emt 0:00:09][%csl LRc6,LRg4]} Bd7 {[%emt 0:00:04]} 27. Rd1 {[%emt 0:02:06]} Be6 {[%emt 0:06:35]} 28. Nc7 {[%emt 0:00:34][%csl LRb5,LRe6]} Bc4 {[%emt 0:00:05]} 29. Ng4 {[%emt 0:07:23]} Be2 {[%emt 0:01:18]} 30. Ra1 {[%emt 0:01:34]} Bxg4 {[%emt 0:06:10]} 31. Bxc6 {[%emt 0:00:24]} (31. Nxb5 Bb8 $17 (31... Bxf2 $2 32. Bd5+ Kh8 33. Bxf2 $18)) 31... bxc6 {[%emt 0:00:02]} 32. Rxa7 {[%emt 0:00:04]} h5 {[%emt 0:00:24][%cal Bh7h5,Bh5h4][%mdl 32]} 33. Kg2 {[%emt 0:06:11]} h4 {[%emt 0:00:50]} 34. Bc3 {[%emt 0:01:18]} Rf7 {[%emt 0:00:53]} 35. Be5 {[%emt 0:00:13]} Bd7 {[%emt 0:00:23]} (35... Bf5 $16 {was called for.} 36. Ra8+ Kh7) 36. f4 $18 {[%emt 0:01:31]} Kh7 {[%emt 0:00:01]} 37. Kh2 {[%emt 0:00:53]} (37. Ra8 $18) 37... Bg4 {[%emt 0:01:01] [#]} 38. Nxb5 $1 {[%emt 0:00:12][%mdl 512]} Rxa7 {[%emt 0:00:03]} 39. Nxa7 {[%emt 0:00:05]} Bd7 {[%emt 0:00:03]} 40. Kg2 {[%emt 0:00:00]} Kh6 {[%emt 0:00:00]} 41. Kf3 {[%emt 0:18:27]} Kg6 {[%emt 0:32:33]} (41... c5 $142 42. b3 g5) 42. b4 $16 {[%emt 0:20:34]} Kh6 {[%emt 0:00:30]} 43. Bd4 {[%emt 0:00:30]} Kg6 {[%emt 0:00:30]} 44. Ke4 {[%emt 0:00:30] Ke5 would now be deadly.} h3 {[%emt 0:00:30] aiming for ...h2.} 45. Kf3 {[%emt 0:00:30]} Bg4+ {[%emt 0:00:30]} (45... Kh7 $16 {was worth a try.} 46. Kg3 Kg6) 46. Kg3 $18 {[%emt 0:00:30]} (46. Kxg4 $2 h2 47. Nxc6 (47. f5+ $2 Kh7 $19) 47... h1=Q (47... h1=R $2 48. b5 $18) 48. Ne5+ Kh7 $19) 46... Bd7 {[%emt 0:00:30]} 47. Bc3 {[%emt 0:00:30]} Kh6 $2 {[%emt 0:00:30] [#]} (47... Kf7 {was necessary.} 48. f5 Kg8) 48. f5 $1 {[%emt 0:00:30]} Kg5 {[%emt 0:00:30]} 49. Kxh3 {[%emt 0:00:30]} (49. Bxg7 Kxf5 50. Kh2 (50. Kxh3 Kg6+ 51. Kg3 Kxg7 $11) 50... Ke4 $14) 49... Kxf5 {[%emt 0:00:30]} 50. Kg3 {[%emt 0:00:30]} ({Stronger than} 50. Bxg7 Kg6+ 51. Kg3 Kxg7 $11) 50... g5 {[%emt 0:00:30][%cal Bg7g5,Bg5g4][%mdl 32]} 51. Kf3 {[%emt 0:00:30]} g4+ {[%emt 0:00:30] [#]} 52. Ke3 $1 {[%emt 0:00:30]} Ke6 {[%emt 0:00:30] [#]} 53. Ke4 $1 {[%emt 0:00:30]} Be8 {[%emt 0:00:30]} 54. Nc8 {[%emt 0:00:30] Hoping for Be5.} Kd7 {[%emt 0:00:30]} 55. Nb6+ {[%emt 0:00:30]} Kc7 {[%emt 0:00:30]} 56. Bd4 {[%emt 0:00:30] Weighted Error Value: White=0.08 (flawless) /Black=0.19 (very precise) .  Mistake:       	White=2     	Black=5      Inaccurate:     	White=3     	Black=3      OK:         	White=24    	Black=14     Best:        	White=5     	Black=6      Strong:       	White=2     	---        Brilliant:      	White=1     	---} 1-0